Cogmind - Beta 13 @@@ ROGUE MODE // 2024.04.13 @ 17:00:38 Player: Rizzen Result: Destroyed by G-34 Mercenary with Small Laser Performance ------------- Evolutions (0) 0 Regions Visited (1) 200 Robots Destroyed (22) 110 Value Destroyed (357) 357 Prototype IDs (0) 0 Alien Tech Used (0) 0 Bonus (0) 0 TOTAL SCORE: 667 Bonus ------- None Cogmind --------- Core Integrity 0/250 Matter 286/300 Energy 125/125 System Corruption 0% Temperature Cool (6) Movement Flying (37) Location -10/Materials Parts ------- > --- POWER (1) -------- Light Ion Engine > --- PROPULSION (2) --- Flight Unit Flight Unit > --- UTILITY (2) ------ Sensor Array ECM Suite > --- WEAPON (2) ------- Light Assault Rifle Light Assault Rifle > --- INVENTORY (5) ---- Light Ion Engine Light Assault Rifle Light Assault Rifle Peak State ------------ > --- POWER ------------ Light Nuclear Core > --- PROPULSION ------- Flight Unit Flight Unit > --- UTILITY ---------- Improved Heat Sink Seismic Detector > --- WEAPON ----------- Light Assault Rifle Light Assault Rifle > --- INVENTORY -------- Light Ion Engine Flight Unit Light Assault Rifle Light Assault Rifle Light Assault Rifle [Rating: 11] Favorites ----------- Power Light Ion Engine Engine Light Ion Engine Power Core Light Nuclear Core Propulsion Flight Unit Wheel Wheel Flight Unit Flight Unit Utility Seismic Detector Device Seismic Detector Storage Small Storage Unit Weapon Light Assault Rifle Energy Gun Medium Laser Ballistic Gun Light Assault Rifle Build | -11 -10 ------- Run | Yrd Mat Slots Evolved . | . . Power . | . . Propulsion . | . . Utility . | . . Weapon . | . . Parts Attached 29 | 9 20 Power 6 | 1 5 Engine 5 | 1 4 Core 1 | . 1 Reactor . | . . Propulsion 9 | 2 7 Treads . | . . Leg . | . . Wheel 4 | 2 2 Hover . | . . Flight 5 | . 5 Utility 7 | 3 4 Device 6 | 2 4 Storage 1 | 1 . Processor . | . . Hackware . | . . Protection . | . . Artifact . | . . Weapon 7 | 3 4 Energy Gun 3 | 2 1 Energy Cannon . | . . Ballistic Gun 4 | 1 3 Ballistic Cannon . | . . Launcher . | . . Special Weapon . | . . Impact Weapon . | . . Slashing Weapon . | . . Piercing Weapon . | . . Special Melee Weapon . | . . Unidentified Prototypes . | . . Parts Lost 10 | . 10 Power 2 | . 2 Propulsion 7 | . 7 Utility . | . . Weapon 1 | . 1 Highest Loss Streak 9 | . 9 To Critical Strikes . | . . Average Slot Usage (%) 96 | . 96 Engine 14 | . 14 Wheel 5 | . 5 Flight 20 | . 20 Device 23 | . 23 Storage 3 | . 3 Energy Gun 6 | . 6 Ballistic Gun 21 | . 21 Naked Turns . | . . Heaviest Build 13 | 13 13 Greatest Support 32 | 20 32 Greatest Overweight (x) 2 | . 2 Average Overweight (x) . | . . Largest Inventory Capacity 8 | 8 8 Average Capacity 6 | 7 5 Most Carried 5 | 3 5 Average Carried 2 | 1 3 Final Capacity 8 | 8 5 Final Carried 3 | 2 3 Class Distribution -------------------- 54% | Scavenger-Mutant 45% | Mutant Dominant Class ---------------- Scavenger-Mutant | -10/Materials Resources | -11 -10 ----------- Run | Yrd Mat Matter Collected 556 | 303 253 Remotely . | . . Salvage Created 748 | 170 578 Parts 45 | 10 35 Haulers Intercepted 1 | . 1 Recyclers Shooed 1 | 1 . Parts Field Recycled . | . . Retrieved Matter . | . . Parts Self-Destructed . | . . Prevented . | . . Kills | -11 -10 ------- Run | Yrd Mat Combat Hostiles Destroyed 12 | . 12 Guns 12 | . 12 Classes Destroyed 7 | 2 5 Tunneler 4 | 4 . Hauler 1 | . 1 Recycler 3 | 1 2 Operator 1 | . 1 Watcher 1 | . 1 Swarmer 6 | . 6 Grunt 6 | . 6 Best Kill Streak 6 | 3 6 Combat Bots Only 6 | . 6 Max Kills in Single Turn 1 | 1 1 Gunslinging . | . . Exploded . | . . Melee . | . . Uniques/NPCs Destroyed . | . . Combat | -11 -10 -------- Run | Yrd Mat Hostile Shots Fired 101 | . 101 Missed 29 | . 29 Damage Taken 755 | . 755 Core 250 | . 250 Absorbed by Shields . | . . Core Remaining (%) 100 | 100 . Volleys Fired 94 | 20 74 Largest 2 | 2 2 Hottest 100 | 100 100 Shots Fired 186 | 40 146 Gun 186 | 40 146 Cannon . | . . Launcher . | . . Special . | . . Kinetic 121 | 13 108 Thermal 65 | 27 38 Explosive . | . . Electromagnetic . | . . Robot Hit Streak 6 | 5 6 Robot Miss Streak 10 | 4 10 Penetration Max . | . . Secondary Targets 2 | . 2 Max Gunslinging Chain 1 | . 1 Shots Hit Robots 89 | 21 68 Core Hits 44 | 7 37 Critical Kills . | . . Critical Parts Destroyed 1 | . 1 Critical Strikes 3 | 1 2 Burn 2 | 1 1 Destroy 1 | . 1 Melee Attacks . | . . Impact . | . . Slashing . | . . Piercing . | . . Sneak Attacks . | . . Combat Hostiles . | . . Follow-up Attacks . | . . Damage Inflicted 957 | 230 727 Guns 957 | 230 727 Cannons . | . . Explosions . | . . Melee . | . . Ramming . | . . Kinetic 544 | 67 477 Thermal 413 | 163 250 Explosive . | . . Electromagnetic . | . . Impact . | . . Slashing . | . . Piercing . | . . Highest Corruption . | . . Average Corruption . | . . Corruption Purged . | . . Corruption Blocked . | . . Overload Shots . | . . Overflow Damage . | . . Projectiles . | . . Explosions . | . . Melee . | . . Knockbacks . | . . Impact . | . . Kinetic . | . . Secondary . | . . Self-Inflicted Damage . | . . Shots . | . . Rammed . | . . Targets Rammed . | . . Kicked . | . . Crushed . | . . Highest Temperature 343 | 156 343 Average Temperature 97 | 65 112 Received Heat Transfer 249 | . 249 Effects 3 | . 3 Energy Bleed 2 | . 2 Interference 1 | . 1 Siege Activations . | . . Robots Corrupted . | . . Combat Hostiles . | . . Parts Fried . | . . Impact Corruptions . | . . Robots Melted . | . . Combat Hostiles . | . . Parts Melted 3 | . 3 Heat Transferred 1369 | 555 814 Parts Sabotaged . | . . Parts Stolen . | . . Parts Stripped . | . . Power Chain Reactions . | . . Alert | -11 -10 ------- Run | Yrd Mat Peak Influence 326 | 25 326 Initial 16 | . 16 Average 153 | 13 198 Maximum Alert Level 1 | . 1 Low Security (%) 56 | 100 43 Level 1 43 | . 56 Level 2 . | . . Level 3 . | . . Level 4 . | . . Level 5 . | . . High Security . | . . Max Security . | . . Squads Dispatched 1 | . 1 Investigation . | . . Extermination . | . . Reinforcement 1 | . 1 Assault . | . . Garrison . | . . Intercept . | . . Searches Triggered . | . . Construction Impeded . | . . Haulers Reinforced . | . . Active Scanning Responses . | . . Cargo Convoy Interrupts . | . . Stealth | -11 -10 --------- Run | Yrd Mat Distress Signals 3 | . 3 Communications Jammed . | . . Distress Signals . | . . Times Spotted 24 | . 24 Peak Tracking Total 7 | . 7 Tactical Retreats 4 | . 4 Traps | -11 -10 ------- Run | Yrd Mat Traps Triggered . | . . Indirectly . | . . Trap Hack Attempts . | . . Triggered . | . . Disarmed . | . . Reprogrammed . | . . Reused . | . . Traps Extracted . | . . Installed . | . . Triggered . | . . Machines | -11 -10 ---------- Run | Yrd Mat Machines Disabled . | . . Max in Single Turn . | . . Machines Repaired . | . . Machines Dismantled . | . . Machines Sabotaged . | . . Overloaded Fab Kills . | . . Hacking | -11 -10 --------- Run | Yrd Mat Machines Accessed 2 | . 2 Terminals 1 | . 1 Fabricators . | . . Repair Stations . | . . Recycling Units 1 | . 1 Scanalyzers . | . . Garrison Access . | . . Total Hacks 2 | . 2 Successful 1 | . 1 Failed 1 | . 1 Catastrophic . | . . Database Lockouts . | . . Manual 1 | . 1 Terminals 1 | . 1 Fabricators . | . . Repair Stations . | . . Recycling Units 1 | . 1 Scanalyzers . | . . Garrison Access . | . . Terminal Hacks . | . . Fabricator Hacks . | . . Repair Station Hacks . | . . Recycling Unit Hacks 1 | . 1 Report Inventory 1 | . 1 Scanalyzer . | . . Garrison Access Hacks . | . . Unauthorized Hacks . | . . Terminals . | . . Fabricators . | . . Repair Stations . | . . Recycling Units . | . . Scanalyzers . | . . Garrison Access . | . . Data Cores Recovered . | . . Used . | . . Hacking Detections 2 | . 2 Full Trace Events . | . . Feedback Events . | . . Feedback Blocked . | . . Robot Schematics Acquired . | . . Robots Built . | . . Authchips . | . . Time . | . . Total Robot Build Rating . | . . Part Schematics Acquired . | . . Parts Built . | . . Authchips . | . . Time . | . . Total Part Build Rating . | . . Parts Repaired . | . . Time . | . . Parts Recycled . | . . Recycled Matter . | . . Retrieved Matter . | . . Retrieved Components . | . . Parts Scanalyzed . | . . Part Schematics Acquired . | . . Parts Damaged . | . . Bothacking | -11 -10 ------------ Run | Yrd Mat Used RIF Installer . | . . Robots Hacked . | . . Non-combat . | . . Combat . | . . Robot Hacks Applied . | . . Relay Couplers Released . | . . Fabnet Peak Effective % . | . . Robots Rewired . | . . Allies Hacked . | . . Hacks Repelled . | . . Allies | -11 -10 -------- Run | Yrd Mat Total Allies . | . . Largest Group . | . . Highest-Rated Group . | . . Highest-Rated Ally . | . . Total Orders . | . . Ally Attacks . | . . Total Damage . | . . Kills . | . . Allies Corrupted . | . . Allies Melted . | . . Intel | -11 -10 ------- Run | Yrd Mat Robot Analysis Total . | . . Derelict Logs Recovered . | . . Drone Launches . | . . Drone Recoveries . | . . Exploration | -11 -10 ------------- Run | Yrd Mat Turns Passed 632 | 154 478 Spaces Moved 551 | 94 457 Core 4 | 1 3 Treads . | . . Legs . | . . Wheels 139 | 93 46 Hover . | . . Flight 408 | . 408 Fastest Speed 37 | 50 37 Average Speed 49 | 79 43 Slowest Speed 150 | 80 150 Overloaded Moves . | . . Propulsion Burnouts . | . . Robots Hopped . | . . Cave-ins Triggered . | . . Exploration Rate (%) 27 | 5 50 Regions Visited 1 Branch Regions . Pre-discovered Areas . | . . Known Exits Taken . | . . Unknown Exits Taken 1 | 1 . Scrap Searched . | . . Spaces Dug . | . . Terrain Destroyed . | . . Melee . | . . Projectile . | . . AOE . | . . Terrain Rammed . | . . Walls Destroyed . | . . Machines Disabled . | . . Actions | -11 -10 --------- Run | Yrd Mat Total 750 | 135 615 Wait 38 | . 38 Move 550 | 93 457 Hop . | . . Pick Up 28 | 11 17 Fast Attach 2 | . 2 Attach 22 | 8 14 Detach . | . . Swap 5 | 1 4 Drop 11 | 2 9 Fire 94 | 20 74 Melee . | . . Ram . | . . Kick . | . . Crush . | . . Escape Stasis . | . . Rewire . | . . Trap . | . . Miscellaneous . | . . Route ------- -11/Scrapyard -10/Materials (discovered 2 exits: [*Mat] / [*Min]) History --------- Turn | Location | Event 18 | -11/Scrapyard | Discovered new exit (range 16) 155 | -11/Scrapyard | Entered Materials 237 | -10/Materials | Core integrity fell below 50% 282 | -10/Materials | Core integrity fell below 20% 306 | -10/Materials | Lost 9 parts (2p6n1w) 407 | -10/Materials | Discovered new exit (range 16) 571 | -10/Materials | Discovered new exit (range 9) 593 | -10/Materials | Build established: Scavenger-Mutant 633 | -10/Materials | Destroyed by G-34 Mercenary with Small Laser Last Messages --------------- 00464_ Acquired 51 matter. 00466_ K-01 Serf collects debris. 00526_ G-34 Mercenary destroyed. 00531_ Flight Unit destroyed. 00535_ G-34 Mercenary destroyed. 00541_ Acquired 25 matter. 00551_ O-16 Technician: "IFF HANDSHAKE FAILED. SECURING TERMINAL." 00554_ O-16 Technician uses terminal to summon reinforcements. 00554_ ALERT: Hostiles spotted, dispatching reinforcements to Terminal M001. 00554_ O-16 Technician locks terminal. 00555_ T-07 Excavator is excavating. 00568_ U-05 Engineer lays Concrete. 00570_ U-05 Engineer builds a Wall. 00571_ EXIT=FOUND 00589_ O-16 Technician destroyed. 00593_ Acquired 16 matter. 00625_ G-34 Mercenary destroyed. Map ----- +----------------------------------------------------+ | # #????????????????????????????? | | ???## "T" T#?????????????????????????????? | | ????# """ ##?????????????????????????????? | | ????# ##########?????????????????????? | | ????# ! ##""|"|""#??????? #????????????? | | ????# ####### ## "|"|" #????? ##???????????? | | ????# # # ## ##### #???????????? | | ????# !=# # #???????????? | | ????#* %+ # < +???????????? | | ????#! # # ?????????????? | | ????# ####### ## ####??????????????????? | | ????# ####### ##########?######??????????????? | | ##### # # + #?? ??????????????? | | *# # """ # # #? """ #?????????????? | | """ # # """ # # # """"" #?????#???????? | | """%+% + """ # ###+##### """"" #???? ##??????? | | """ # % # """ # ###?##### """"" #???? ???????? | | ! # # """ # == +* """ +??? ????????? | | [*! # =%# # #### #?? ?????????? | | ##### ##+#### #??? #?? ??????????? | | ????# ! #??#######+#####? #? #??????????? | | ????#*%[ ###### [ #?######/## #??????????? | | ????+ # # #??????# #??????????? | | ??? # #![ # """"""" #??????# #??????????? | | ??? # #!%[ # """"""" ######## #??????????? | | ##### # [|!# """""""@/ g! #??????????? | | # |!# """"""" #############??????????? | | + # """"""" #??????????????????????? | | #### # #??????????????????????? | | ###################??????????????????????? | | #??# #??????????##############??? | | #??# """#??????????# """ #??? | | #??# """#??????????#= """ "Y" #??? | | ###+##### #??# """#??????????# """ #??? | | ! # #??# #??????????# """ #??? | | [ """ # #??# #??????????# #??? | | ! """ # #######+####################+######### | | !! """ # ! ? | | + < | | # | | ""T"" ########################################## | | """"" #????????????????????????????????????????? | | #########????????????????????????????????????????? | | ?????????????????????????????????????????????????? | | ?????????????????????????????????????????????????? | | | | | | | | | | | +----------------------------------------------------+ Best States ------------- Heat Dissipation 39 Energy Generation 10 Energy Capacity 125 Matter Stores 300 Matter Capacity 300 Sight Range 16 Robot Scan Range 14 Terrain Scan Density 10 ECM Strength 1 Evasion (%) 62 Item Schematics ----------------- None Robot Schematics ------------------ None Fabricated ------------ Nothing Alien Tech Used ----------------- None Achievements -------------- None Challenges ------------ None Game ------ Seed SignalVisualReconfigurator Manual? 0 Play Time 00:10:39 Cumulative 28.2 hours Start 2024.04.13 @ 16:51:08 End 2024.04.13 @ 17:00:38 Sessions 1 Manual Loads 0 Difficulty Rogue Special Mode None Game No. 18 Rogue 18 Adventurer 0 Explorer 0 Win Type - Total 0 Types 0/0/0/0/0/0/0/0/0 Lore% 16 Gallery% 28 Achievement% 24 Wizard Run 0 Options --------- Layout 1 ASCII 0 Keyboard 0 Movement Mouse Keybinds 0 Fullscreen 1 Font 32/SmallcapsGlow Map View 50x35 Zoom Use 0% Tactical HUD 1 Map Filters NONE Filters NONE Steam 0 RUN: 1c5a5f4e-5260-4330-8a0f-d22cf52735e0